[Event "Live Chess"]
[Site "Chess.com"]
[Date "2023.05.20"]
[Round "-"]
[White "ameetghasi100"]
[Black "Ferrarifan27"]
[Result "1-0"]
[WhiteElo "2705"]
[BlackElo "2103"]
[TimeControl "300"]
[EndTime "11:59:32 PDT"]
[Termination "ameetghasi100 won on time"]

1. e4 {[%clk 0:04:58.4]} 1... e5 {[%clk 0:04:58.5]} 2. Nf3 {[%clk 0:04:56.7]}
2... Nc6 {[%clk 0:04:58]} 3. Bb5 {[%clk 0:04:55.5]} 3... a6 {[%clk 0:04:56.8]}
4. Ba4 {[%clk 0:04:53.2]} 4... Nf6 {[%clk 0:04:55.6]} 5. Bxc6 {[%clk 0:04:52.3]}
5... dxc6 {[%clk 0:04:54.2]} 6. d3 {[%clk 0:04:52.2]} 6... Bg4 {[%clk
0:04:49.1]} 7. Nbd2 {[%clk 0:04:49.2]} 7... Bd6 {[%clk 0:04:45.7]} 8. O-O {[%clk
0:04:46.1]} 8... O-O {[%clk 0:04:44.6]} 9. Qe1 {[%clk 0:04:44.8]} 9... Re8
{[%clk 0:04:42.8]} 10. b3 {[%clk 0:04:43.9]} 10... Qe7 {[%clk 0:04:40.9]} 11.
Bb2 {[%clk 0:04:43]} 11... Nh5 {[%clk 0:04:35.2]} 12. Qe3 {[%clk 0:04:38.9]}
12... Nf4 {[%clk 0:04:33]} 13. Kh1 {[%clk 0:04:32.7]} 13... Qe6 {[%clk
0:04:22.6]} 14. Rg1 {[%clk 0:04:22.6]} 14... Qh6 {[%clk 0:04:17.7]} 15. Nc4
{[%clk 0:04:15.7]} 15... Bxf3 {[%clk 0:04:04]} 16. Qxf3 {[%clk 0:04:12.9]} 16...
Re6 {[%clk 0:04:01.1]} 17. Bc1 {[%clk 0:04:11.2]} 17... Rf6 {[%clk 0:03:36.6]}
18. Be3 {[%clk 0:03:50.7]} 18... Qh4 {[%clk 0:03:31.4]} 19. Qg3 {[%clk 0:03:39]}
19... Qh5 {[%clk 0:03:24.8]} 20. Bxf4 {[%clk 0:03:35.4]} 20... exf4 {[%clk
0:03:18.2]} 21. Qf3 {[%clk 0:03:32]} 21... Qxf3 {[%clk 0:03:15.8]} 22. gxf3
{[%clk 0:03:31.9]} 22... Re8 {[%clk 0:03:09.7]} 23. d4 {[%clk 0:03:30.5]} 23...
Rh6 {[%clk 0:03:07]} 24. e5 {[%clk 0:03:25.2]} 24... Bb4 {[%clk 0:03:04.1]} 25.
Rad1 {[%clk 0:03:22.9]} 25... Rh3 {[%clk 0:02:59.8]} 26. Kg2 {[%clk 0:03:20.1]}
26... Rh4 {[%clk 0:02:55.2]} 27. Rd3 {[%clk 0:03:17.4]} 27... Re6 {[%clk
0:02:53.5]} 28. c3 {[%clk 0:03:15.1]} 28... Be7 {[%clk 0:02:50.7]} 29. Nd2
{[%clk 0:03:06.6]} 29... Reh6 {[%clk 0:02:48.5]} 30. Rh1 {[%clk 0:03:03.5]}
30... Rg6+ {[%clk 0:02:44.3]} 31. Kf1 {[%clk 0:03:01.3]} 31... Rgh6 {[%clk
0:02:42.9]} 32. c4 {[%clk 0:02:56.9]} 32... Rxh2 {[%clk 0:02:40.8]} 33. Rxh2
{[%clk 0:02:53.5]} 33... Rxh2 {[%clk 0:02:40.7]} 34. d5 {[%clk 0:02:51.6]} 34...
cxd5 {[%clk 0:02:34.3]} 35. cxd5 {[%clk 0:02:51.5]} 35... Bh4 {[%clk 0:02:32.7]}
36. Ne4 {[%clk 0:02:48.8]} 36... Rh1+ {[%clk 0:02:23.6]} 37. Kg2 {[%clk
0:02:32.5]} 37... Ra1 {[%clk 0:02:22.2]} 38. Rc3 {[%clk 0:02:27.1]} 38... Bd8
{[%clk 0:02:10.6]} 39. d6 {[%clk 0:02:25.1]} 39... c6 {[%clk 0:01:59.8]} 40. Nc5
{[%clk 0:02:21.4]} 40... Kf8 {[%clk 0:01:48.7]} 41. Nxb7 {[%clk 0:02:16.4]}
41... Ke8 {[%clk 0:01:46.1]} 42. Rc2 {[%clk 0:02:10.8]} 42... Kd7 {[%clk
0:01:42.9]} 43. Nc5+ {[%clk 0:02:06.6]} 43... Ke8 {[%clk 0:01:41.8]} 44. Nxa6
{[%clk 0:02:06]} 44... h5 {[%clk 0:01:37.4]} 45. Nb4 {[%clk 0:02:01.3]} 45... g5
{[%clk 0:01:34.8]} 46. Nxc6 {[%clk 0:01:57.5]} 46... g4 {[%clk 0:01:33.7]} 47.
d7+ {[%clk 0:01:48.8]} 47... Kxd7 {[%clk 0:01:31.1]} 48. Rd2+ {[%clk 0:01:48.4]}
48... Kxc6 {[%clk 0:01:30.1]} 49. Rxd8 {[%clk 0:01:41.3]} 49... Rxa2 {[%clk
0:01:28.6]} 50. Rd4 {[%clk 0:01:27.9]} 50... g3 {[%clk 0:01:25.5]} 51. Rxf4
{[%clk 0:01:24.5]} 51... gxf2 {[%clk 0:01:18.9]} 52. Rxf7 {[%clk 0:01:17.3]}
52... Kd5 {[%clk 0:01:17.9]} 53. f4 {[%clk 0:01:04.7]} 53... Rb2 {[%clk
0:01:09.4]} 54. Rf6 {[%clk 0:00:56.6]} 54... h4 {[%clk 0:01:02]} 55. Rh6 {[%clk
0:00:55.3]} 55... Rxb3 {[%clk 0:00:49.1]} 56. e6 {[%clk 0:00:46]} 56... h3+
{[%clk 0:00:41.7]} 57. Kxf2 {[%clk 0:00:45]} 57... h2 {[%clk 0:00:35.6]} 58. e7
{[%clk 0:00:30.8]} 58... Rb8 {[%clk 0:00:27]} 59. Kg2 {[%clk 0:00:28.1]} 59...
Re8 {[%clk 0:00:22.4]} 60. Kxh2 {[%clk 0:00:25]} 60... Rxe7 {[%clk 0:00:20.9]}
61. Kg3 {[%clk 0:00:24.9]} 61... Rg7+ {[%clk 0:00:17.7]} 62. Kh4 {[%clk
0:00:22.6]} 62... Ke4 {[%clk 0:00:16.5]} 63. Rf6 {[%clk 0:00:21.2]} 63... Rg1
{[%clk 0:00:14.5]} 64. Kh5 {[%clk 0:00:19.9]} 64... Rg2 {[%clk 0:00:13.1]} 65.
Rf8 {[%clk 0:00:16.8]} 65... Rg1 {[%clk 0:00:11.6]} 66. Kh6 {[%clk 0:00:15.3]}
66... Rg2 {[%clk 0:00:10.2]} 67. f5 {[%clk 0:00:14.5]} 67... Ke5 {[%clk
0:00:08.6]} 68. Kh7 {[%clk 0:00:13.8]} 68... Rg5 {[%clk 0:00:07.1]} 69. f6
{[%clk 0:00:11.9]} 69... Ke6 {[%clk 0:00:06.5]} 70. f7 {[%clk 0:00:10.6]} 70...
Ke7 {[%clk 0:00:05.5]} 71. Rg8 {[%clk 0:00:09.1]} 71... Rh5+ {[%clk 0:00:04.2]}
72. Kg6 {[%clk 0:00:08.2]} 1-0

[Event "Live Chess"]
[Site "Chess.com"]
[Date "2023.05.20"]
[Round "-"]
[White "jennybobby44"]
[Black "Richardallis"]
[Result "1-0"]
[WhiteElo "1892"]
[BlackElo "1736"]
[TimeControl "300"]
[EndTime "11:59:43 PDT"]
[Termination "jennybobby44 won by resignation"]

1. Nf3 {[%clk 0:04:59.2]} 1... f5 {[%clk 0:04:58.7]} 2. g3 {[%clk 0:04:58.4]}
2... Nf6 {[%clk 0:04:58.3]} 3. Bg2 {[%clk 0:04:57.8]} 3... d5 {[%clk 0:04:57.4]}
4. d4 {[%clk 0:04:55.9]} 4... c6 {[%clk 0:04:56.5]} 5. O-O {[%clk 0:04:55.3]}
5... g6 {[%clk 0:04:55.3]} 6. Ne5 {[%clk 0:04:54.6]} 6... Bg7 {[%clk 0:04:54.6]}
7. b3 {[%clk 0:04:53.8]} 7... Nbd7 {[%clk 0:04:53.3]} 8. Bb2 {[%clk 0:04:53.5]}
8... e6 {[%clk 0:04:52.2]} 9. h3 {[%clk 0:04:52.3]} 9... O-O {[%clk 0:04:51.1]}
10. Nd2 {[%clk 0:04:50.7]} 10... Nxe5 {[%clk 0:04:50.2]} 11. dxe5 {[%clk
0:04:50]} 11... Ne4 {[%clk 0:04:49.7]} 12. Nxe4 {[%clk 0:04:46.8]} 12... fxe4
{[%clk 0:04:48.5]} 13. f4 {[%clk 0:04:43.2]} 13... exf3 {[%clk 0:04:47.1]} 14.
exf3 {[%clk 0:04:42.2]} 14... Qg5 {[%clk 0:04:46]} 15. Qe1 {[%clk 0:04:35.6]}
15... Rf5 {[%clk 0:04:40.8]} 16. f4 {[%clk 0:04:33.5]} 16... Qh6 {[%clk
0:04:34.2]} 17. Qe3 {[%clk 0:04:15.2]} 17... Bd7 {[%clk 0:04:31.2]} 18. g4
{[%clk 0:04:13.6]} 18... Rff8 {[%clk 0:04:22.8]} 19. Ba3 {[%clk 0:04:12.8]}
19... Rf7 {[%clk 0:04:21.4]} 20. Rae1 {[%clk 0:04:09]} 20... b6 {[%clk 0:04:19]}
21. c4 {[%clk 0:04:06.7]} 21... Rd8 {[%clk 0:04:15.5]} 22. cxd5 {[%clk
0:04:01.2]} 22... cxd5 {[%clk 0:04:14.6]} 23. Qg3 {[%clk 0:03:25.6]} 23... Bb5
{[%clk 0:04:10.4]} 24. g5 {[%clk 0:03:18.3]} 24... Bxf1 {[%clk 0:03:58.5]} 25.
gxh6 {[%clk 0:03:15.7]} 25... Bxg2 {[%clk 0:03:54.5]} 26. hxg7 {[%clk
0:03:09.5]} 26... Be4 {[%clk 0:03:53.1]} 27. Bf8 {[%clk 0:03:06.9]} 27... Bf5
{[%clk 0:03:50.4]} 28. Rc1 {[%clk 0:03:03.5]} 28... d4 {[%clk 0:03:49.1]} 29.
Bd6 {[%clk 0:02:54.1]} 29... d3 {[%clk 0:03:44.9]} 30. Rd1 {[%clk 0:02:46.6]}
30... Kxg7 {[%clk 0:03:42.5]} 31. Rxd3 {[%clk 0:02:45.8]} 31... Bxd3 {[%clk
0:03:41]} 32. Qxd3 {[%clk 0:02:45.7]} 32... Rxf4 {[%clk 0:03:39.3]} 33. Kg2
{[%clk 0:02:44]} 33... Kg8 {[%clk 0:03:32.8]} 34. Qc4 {[%clk 0:02:42.9]} 34...
Re8 {[%clk 0:03:28.2]} 35. Qxf4 {[%clk 0:02:41.5]} 1-0

[Event "Live Chess"]
[Site "Chess.com"]
[Date "2023.05.20"]
[Round "-"]
[White "apl_trainer"]
[Black "ElectricFalcon"]
[Result "1-0"]
[WhiteElo "1597"]
[BlackElo "1065"]
[TimeControl "300"]
[EndTime "11:59:44 PDT"]
[Termination "apl_trainer won by resignation"]

1. d4 {[%clk 0:04:58.4]} 1... d5 {[%clk 0:04:59]} 2. c4 {[%clk 0:04:57.2]} 2...
Nf6 {[%clk 0:04:58.6]} 3. cxd5 {[%clk 0:04:55.3]} 3... Nxd5 {[%clk 0:04:56.5]}
4. e4 {[%clk 0:04:54.3]} 4... Nb6 {[%clk 0:04:54.5]} 5. Nc3 {[%clk 0:04:51.9]}
5... e6 {[%clk 0:04:53.7]} 6. Nf3 {[%clk 0:04:49.7]} 6... Bb4 {[%clk 0:04:52.5]}
7. Bd3 {[%clk 0:04:46.4]} 7... O-O {[%clk 0:04:51]} 8. O-O {[%clk 0:04:45.3]}
8... c6 {[%clk 0:04:50.3]} 9. Qe2 {[%clk 0:04:40.4]} 9... N8d7 {[%clk
0:04:45.9]} 10. e5 {[%clk 0:04:38.9]} 10... Bxc3 {[%clk 0:04:39.9]} 11. bxc3
{[%clk 0:04:35.9]} 11... Nd5 {[%clk 0:04:39]} 12. c4 {[%clk 0:04:20.1]} 12...
Ne7 {[%clk 0:04:33.3]} 13. Ba3 {[%clk 0:04:16.4]} 13... Re8 {[%clk 0:04:25.7]}
14. Ng5 {[%clk 0:04:08.3]} 14... Ng6 {[%clk 0:04:21.9]} 15. Qh5 {[%clk 0:03:58]}
15... h6 {[%clk 0:04:18.3]} 16. Nxf7 {[%clk 0:03:52.6]} 16... Qg5 {[%clk
0:04:13.7]} 17. Nxg5 {[%clk 0:03:50.5]} 17... hxg5 {[%clk 0:04:13.6]} 18. Qxg6
{[%clk 0:03:48.7]} 1-0

[Event "Live Chess"]
[Site "Chess.com"]
[Date "2023.05.20"]
[Round "-"]
[White "xx_blindpuffin_xx"]
[Black "mightysmasher"]
[Result "1-0"]
[WhiteElo "2210"]
[BlackElo "2131"]
[TimeControl "300"]
[EndTime "11:59:46 PDT"]
[Termination "xx_blindpuffin_xx won by checkmate"]

1. d4 {[%clk 0:04:59.1]} 1... d5 {[%clk 0:04:58.8]} 2. Bf4 {[%clk 0:04:58.2]}
2... Nf6 {[%clk 0:04:55.2]} 3. e3 {[%clk 0:04:57.1]} 3... e6 {[%clk 0:04:54.5]}
4. Nf3 {[%clk 0:04:56.2]} 4... Bd6 {[%clk 0:04:53.9]} 5. Bg3 {[%clk 0:04:54.5]}
5... O-O {[%clk 0:04:52.8]} 6. Bd3 {[%clk 0:04:53.2]} 6... c5 {[%clk 0:04:52.2]}
7. c3 {[%clk 0:04:52.3]} 7... Nc6 {[%clk 0:04:51.6]} 8. Nbd2 {[%clk 0:04:50.1]}
8... b6 {[%clk 0:04:50.4]} 9. e4 {[%clk 0:04:47.9]} 9... dxe4 {[%clk 0:04:46.5]}
10. Nxe4 {[%clk 0:04:46.8]} 10... Nxe4 {[%clk 0:04:44.7]} 11. Bxe4 {[%clk
0:04:46.7]} 11... Bb7 {[%clk 0:04:43.4]} 12. dxc5 {[%clk 0:04:41]} 12... Bxc5
{[%clk 0:04:42]} 13. Qe2 {[%clk 0:04:38.6]} 13... h6 {[%clk 0:04:34.9]} 14. Rd1
{[%clk 0:04:25.1]} 14... Qf6 {[%clk 0:04:32.6]} 15. O-O {[%clk 0:04:13.7]} 15...
Rfd8 {[%clk 0:04:28.6]} 16. b4 {[%clk 0:03:51.2]} 16... Be7 {[%clk 0:04:24.1]}
17. b5 {[%clk 0:03:50.3]} 17... Na5 {[%clk 0:04:21.8]} 18. Be5 {[%clk 0:03:49]}
18... Bxe4 {[%clk 0:04:12.6]} 19. Bxf6 {[%clk 0:03:45.1]} 19... Bxf3 {[%clk
0:04:11.5]} 20. Qxf3 {[%clk 0:03:43.9]} 20... Bxf6 {[%clk 0:04:10.5]} 21. Rxd8+
{[%clk 0:03:34.7]} 21... Rxd8 {[%clk 0:04:09]} 22. Rd1 {[%clk 0:03:34.6]} 22...
Rc8 {[%clk 0:04:08.2]} 23. g3 {[%clk 0:03:29.3]} 23... Rxc3 {[%clk 0:04:04.8]}
24. Rd8+ {[%clk 0:03:26.9]} 24... Kh7 {[%clk 0:04:02.6]} 25. Qe4+ {[%clk
0:03:21.1]} 25... g6 {[%clk 0:04:01.4]} 26. Rd7 {[%clk 0:03:19.8]} 26... Kg7
{[%clk 0:03:59.7]} 27. Qxe6 {[%clk 0:03:17]} 27... Be7 {[%clk 0:03:55.3]} 28.
Rxe7 {[%clk 0:03:14.8]} 28... Rf3 {[%clk 0:03:53.6]} 29. Qe5+ {[%clk 0:03:11]}
29... Kf8 {[%clk 0:03:51.6]} 30. Re8# {[%clk 0:03:09.9]} 1-0

[Event "Live Chess"]
[Site "Chess.com"]
[Date "2023.05.20"]
[Round "-"]
[White "FMOlexandrProhorov"]
[Black "olahgito"]
[Result "1-0"]
[WhiteElo "2188"]
[BlackElo "728"]
[TimeControl "300"]
[EndTime "11:59:51 PDT"]
[Termination "FMOlexandrProhorov won by checkmate"]

1. e4 {[%clk 0:04:58.2]} 1... d5 {[%clk 0:04:58.9]} 2. exd5 {[%clk 0:04:56.9]}
2... Qxd5 {[%clk 0:04:58.8]} 3. Nc3 {[%clk 0:04:56]} 3... Qd8 {[%clk 0:04:58.7]}
4. d4 {[%clk 0:04:55.3]} 4... Nf6 {[%clk 0:04:57.9]} 5. Bc4 {[%clk 0:04:54.5]}
5... e6 {[%clk 0:04:56]} 6. Nf3 {[%clk 0:04:53.3]} 6... Bb4 {[%clk 0:04:55.5]}
7. O-O {[%clk 0:04:52.5]} 7... Nc6 {[%clk 0:04:52.9]} 8. Bg5 {[%clk 0:04:50.6]}
8... O-O {[%clk 0:04:45.8]} 9. Qe2 {[%clk 0:04:48.9]} 9... Bxc3 {[%clk
0:04:41.1]} 10. bxc3 {[%clk 0:04:47.2]} 10... h6 {[%clk 0:04:37.6]} 11. Bh4
{[%clk 0:04:45.8]} 11... a6 {[%clk 0:04:02.2]} 12. Ne5 {[%clk 0:04:40.3]} 12...
Nxe5 {[%clk 0:03:59.9]} 13. dxe5 {[%clk 0:04:37.8]} 13... Nd5 {[%clk 0:03:57.9]}
14. Bxd8 {[%clk 0:04:28.5]} 14... Rxd8 {[%clk 0:03:55.9]} 15. Bd3 {[%clk
0:04:28]} 15... Nxc3 {[%clk 0:03:54.4]} 16. Qg4 {[%clk 0:04:25]} 16... b5 {[%clk
0:03:44.8]} 17. Qb4 {[%clk 0:04:18.6]} 17... Nd5 {[%clk 0:03:39.1]} 18. Qe4
{[%clk 0:04:17.5]} 18... Bb7 {[%clk 0:03:36.9]} 19. Qh7+ {[%clk 0:04:15.9]}
19... Kf8 {[%clk 0:03:35.4]} 20. Qh8+ {[%clk 0:04:15.5]} 20... Ke7 {[%clk
0:03:35]} 21. Qxg7 {[%clk 0:04:15.4]} 21... Rg8 {[%clk 0:03:27.3]} 22. Qxh6
{[%clk 0:04:14.2]} 22... Nb4 {[%clk 0:03:21.3]} 23. Qh4+ {[%clk 0:04:12.2]}
23... Kd7 {[%clk 0:03:19.8]} 24. Be4 {[%clk 0:04:11.8]} 24... Bxe4 {[%clk
0:03:18.1]} 25. Qxe4 {[%clk 0:04:11.7]} 25... Nxc2 {[%clk 0:03:17.6]} 26. Qxc2
{[%clk 0:04:10]} 26... Ke7 {[%clk 0:03:16.3]} 27. Qxc7+ {[%clk 0:03:56.9]} 27...
Kf8 {[%clk 0:03:13.4]} 28. Rfd1 {[%clk 0:03:56.8]} 28... Kg7 {[%clk 0:03:12]}
29. Rd7 {[%clk 0:03:52.6]} 29... Rgf8 {[%clk 0:03:08]} 30. Qc3 {[%clk
0:03:48.4]} 30... Rad8 {[%clk 0:03:00.5]} 31. Qg3+ {[%clk 0:03:48.3]} 31... Kh7
{[%clk 0:02:58.6]} 32. Rxd8 {[%clk 0:03:46.1]} 32... Rxd8 {[%clk 0:02:57.7]} 33.
Qh4+ {[%clk 0:03:46]} 33... Kg7 {[%clk 0:02:55]} 34. Qxd8 {[%clk 0:03:45.9]}
34... Kg6 {[%clk 0:02:53.5]} 35. Rd1 {[%clk 0:03:45.8]} 35... Kf5 {[%clk
0:02:51.2]} 36. Rd7 {[%clk 0:03:45.7]} 36... Kxe5 {[%clk 0:02:50.1]} 37. Qf6+
{[%clk 0:03:45.6]} 37... Kxf6 {[%clk 0:02:49.2]} 38. Rd6 {[%clk 0:03:44.6]}
38... Ke5 {[%clk 0:02:46.8]} 39. Rxa6 {[%clk 0:03:44.5]} 39... f5 {[%clk
0:02:43.7]} 40. Rb6 {[%clk 0:03:44.4]} 40... Kd4 {[%clk 0:02:40]} 41. Rxb5
{[%clk 0:03:44.3]} 41... e5 {[%clk 0:02:39.5]} 42. h4 {[%clk 0:03:43]} 42... e4
{[%clk 0:02:38.7]} 43. h5 {[%clk 0:03:42.8]} 43... f4 {[%clk 0:02:38.1]} 44. h6
{[%clk 0:03:42.7]} 44... e3 {[%clk 0:02:37.5]} 45. fxe3+ {[%clk 0:03:42.2]}
45... fxe3 {[%clk 0:02:37.4]} 46. Kf1 {[%clk 0:03:41.8]} 46... Kd3 {[%clk
0:02:36.8]} 47. Ke1 {[%clk 0:03:41.7]} 47... Kc2 {[%clk 0:02:32.6]} 48. h7
{[%clk 0:03:41.6]} 48... Kd3 {[%clk 0:02:31.7]} 49. h8=Q {[%clk 0:03:40.9]}
49... Ke4 {[%clk 0:02:31.3]} 50. Qe5+ {[%clk 0:03:39.9]} 50... Kd3 {[%clk
0:02:31.2]} 51. Rd5+ {[%clk 0:03:38.5]} 51... Kc2 {[%clk 0:02:30.7]} 52. Qxe3
{[%clk 0:03:37.4]} 52... Kb2 {[%clk 0:02:30.4]} 53. Qb3+ {[%clk 0:03:37]} 53...
Kc1 {[%clk 0:02:28.2]} 54. Rd1# {[%clk 0:03:36.9]} 1-0

[Event "Live Chess"]
[Site "Chess.com"]
[Date "2023.05.20"]
[Round "-"]
[White "CocheseUK"]
[Black "VovaOvchar1990"]
[Result "0-1"]
[WhiteElo "1044"]
[BlackElo "1220"]
[TimeControl "300"]
[EndTime "11:59:52 PDT"]
[Termination "VovaOvchar1990 won by checkmate"]

1. e4 {[%clk 0:04:58.4]} 1... e5 {[%clk 0:04:57]} 2. Nf3 {[%clk 0:04:55.2]} 2...
Nc6 {[%clk 0:04:55.5]} 3. Bb5 {[%clk 0:04:53.7]} 3... Bc5 {[%clk 0:04:53.7]} 4.
Bxc6 {[%clk 0:04:36.5]} 4... dxc6 {[%clk 0:04:50.8]} 5. Nxe5 {[%clk 0:04:35.3]}
5... Qh4 {[%clk 0:04:40.6]} 6. Nd3 {[%clk 0:04:20.3]} 6... Nf6 {[%clk
0:04:34.3]} 7. Nxc5 {[%clk 0:04:13.1]} 7... O-O {[%clk 0:04:19.1]} 8. O-O {[%clk
0:04:11.4]} 8... Ng4 {[%clk 0:04:14.2]} 9. h3 {[%clk 0:04:02.1]} 9... Nf6 {[%clk
0:04:04.2]} 10. Qf3 {[%clk 0:03:59.8]} 10... b6 {[%clk 0:03:55.4]} 11. Nb3
{[%clk 0:03:26.6]} 11... Nxe4 {[%clk 0:03:53.5]} 12. d3 {[%clk 0:03:20.9]} 12...
Nf6 {[%clk 0:03:44.5]} 13. Nc3 {[%clk 0:03:17.8]} 13... Bb7 {[%clk 0:03:34.4]}
14. Qf4 {[%clk 0:03:14.8]} 14... Qh5 {[%clk 0:03:14.4]} 15. Be3 {[%clk
0:02:54.9]} 15... Rab8 {[%clk 0:03:08.4]} 16. Ne4 {[%clk 0:02:41.5]} 16... Nxe4
{[%clk 0:02:57.4]} 17. Qxe4 {[%clk 0:02:35.5]} 17... c5 {[%clk 0:02:55]} 18. Qg4
{[%clk 0:02:20.1]} 18... Qe5 {[%clk 0:02:29.7]} 19. c3 {[%clk 0:02:10.6]} 19...
f5 {[%clk 0:02:23]} 20. Qf4 {[%clk 0:01:53.2]} 20... Qd5 {[%clk 0:02:14.3]} 21.
d4 {[%clk 0:01:33.3]} 21... Qxg2# {[%clk 0:02:12.2]} 0-1

[Event "Live Chess"]
[Site "Chess.com"]
[Date "2023.05.20"]
[Round "-"]
[White "Sidharth2008"]
[Black "booktrunk"]
[Result "0-1"]
[WhiteElo "1102"]
[BlackElo "1332"]
[TimeControl "300"]
[EndTime "11:59:53 PDT"]
[Termination "booktrunk won by resignation"]

1. e4 {[%clk 0:04:57.9]} 1... d5 {[%clk 0:04:57.7]} 2. exd5 {[%clk 0:04:56.5]}
2... Qxd5 {[%clk 0:04:55.7]} 3. Nc3 {[%clk 0:04:55.9]} 3... Qe5+ {[%clk
0:04:54.6]} 4. Qe2 {[%clk 0:04:53.6]} 4... Qxe2+ {[%clk 0:04:51.9]} 5. Bxe2
{[%clk 0:04:52.9]} 5... c6 {[%clk 0:04:50.8]} 6. Nf3 {[%clk 0:04:51.5]} 6... Bf5
{[%clk 0:04:49]} 7. d3 {[%clk 0:04:47.8]} 7... e6 {[%clk 0:04:47.6]} 8. O-O
{[%clk 0:04:47.1]} 8... Nd7 {[%clk 0:04:44.6]} 9. Nd4 {[%clk 0:04:43.6]} 9...
Bg6 {[%clk 0:04:42.4]} 10. Bf4 {[%clk 0:04:36.7]} 10... Bc5 {[%clk 0:04:39]} 11.
Nb3 {[%clk 0:04:34.5]} 11... Bb6 {[%clk 0:04:37.4]} 12. Be3 {[%clk 0:04:30.3]}
12... Bxe3 {[%clk 0:04:35.7]} 13. fxe3 {[%clk 0:04:29]} 13... O-O-O {[%clk
0:04:32.8]} 14. Bf3 {[%clk 0:04:19.1]} 14... f6 {[%clk 0:04:29.7]} 15. Ne4
{[%clk 0:04:14.1]} 15... Ne7 {[%clk 0:04:22]} 16. Nec5 {[%clk 0:04:04.2]} 16...
Nxc5 {[%clk 0:04:17.9]} 17. Nxc5 {[%clk 0:04:02.9]} 17... e5 {[%clk 0:04:11.5]}
18. Bg4+ {[%clk 0:03:51.9]} 18... f5 {[%clk 0:04:05]} 19. Bh3 {[%clk 0:03:41.3]}
19... Rhf8 {[%clk 0:04:00.6]} 20. e4 {[%clk 0:03:39.6]} 20... Rd6 {[%clk
0:03:57.2]} 21. Rf2 {[%clk 0:03:19.7]} 21... Kc7 {[%clk 0:03:47.2]} 22. Raf1
{[%clk 0:03:17.1]} 22... f4 {[%clk 0:03:44.8]} 23. g3 {[%clk 0:03:11.7]} 23...
Rff6 {[%clk 0:03:39.5]} 24. gxf4 {[%clk 0:03:06.7]} 24... exf4 {[%clk
0:03:38.1]} 25. Rxf4 {[%clk 0:03:05.6]} 25... Rxf4 {[%clk 0:03:36.6]} 26. Rxf4
{[%clk 0:03:04.4]} 26... b6 {[%clk 0:03:32.2]} 27. Ne6+ {[%clk 0:03:02.1]} 27...
Kb7 {[%clk 0:03:30.7]} 28. Nxg7 {[%clk 0:02:58.2]} 28... h5 {[%clk 0:03:28.2]}
29. Nf5 {[%clk 0:02:53.2]} 29... Nxf5 {[%clk 0:03:26.2]} 30. Bxf5 {[%clk
0:02:51.6]} 30... Rf6 {[%clk 0:03:24.7]} 31. Rh4 {[%clk 0:02:41.1]} 31... Bxf5
{[%clk 0:03:22]} 32. exf5 {[%clk 0:02:35.4]} 32... Rxf5 {[%clk 0:03:20]} 33. Kg2
{[%clk 0:02:25.8]} 33... a5 {[%clk 0:03:18.2]} 34. Kg3 {[%clk 0:02:18.2]} 34...
b5 {[%clk 0:03:16.3]} 35. Rf4 {[%clk 0:02:16.7]} 35... Rc5 {[%clk 0:03:10]} 36.
c3 {[%clk 0:02:15.1]} 36... Kb6 {[%clk 0:03:07]} 37. d4 {[%clk 0:02:02]} 37...
Rg5+ {[%clk 0:03:03.8]} 38. Kh4 {[%clk 0:01:59.2]} 38... Rg2 {[%clk 0:03:01.8]}
39. Kxh5 {[%clk 0:01:45.9]} 39... Rxh2+ {[%clk 0:03:00.7]} 40. Kg5 {[%clk
0:01:44.1]} 40... Rxb2 {[%clk 0:02:59]} 41. a3 {[%clk 0:01:39.3]} 41... Rb3
{[%clk 0:02:57.8]} 42. Rf8 {[%clk 0:01:34.3]} 42... Rxa3 {[%clk 0:02:56.4]} 43.
Rb8+ {[%clk 0:01:32.2]} 43... Kc7 {[%clk 0:02:52.3]} 44. Ra8 {[%clk 0:01:30.6]}
44... Rxc3 {[%clk 0:02:47.7]} 45. Rxa5 {[%clk 0:01:28.4]} 45... Rd3 {[%clk
0:02:46.3]} 46. Ra7+ {[%clk 0:01:23.4]} 46... Kd6 {[%clk 0:02:45.1]} 47. Kf4
{[%clk 0:01:18.5]} 47... Rxd4+ {[%clk 0:02:44.3]} 48. Ke3 {[%clk 0:01:17.8]}
48... Ra4 {[%clk 0:02:43.2]} 49. Rxa4 {[%clk 0:01:10.6]} 49... bxa4 {[%clk
0:02:41.8]} 50. Kd4 {[%clk 0:01:10.3]} 50... Kc7 {[%clk 0:02:29.9]} 51. Kc4
{[%clk 0:01:06.2]} 51... a3 {[%clk 0:02:27.9]} 52. Kb3 {[%clk 0:01:03.1]} 52...
Kb6 {[%clk 0:02:27.2]} 53. Kxa3 {[%clk 0:00:59.6]} 53... Kc5 {[%clk 0:02:26.7]}
54. Kb2 {[%clk 0:00:56.9]} 54... Kc4 {[%clk 0:02:26.1]} 55. Kc2 {[%clk
0:00:55.7]} 55... c5 {[%clk 0:02:25.6]} 56. Kc1 {[%clk 0:00:53.9]} 56... Kc3
{[%clk 0:02:25]} 57. Kd1 {[%clk 0:00:53.1]} 57... c4 {[%clk 0:02:24.3]} 58. Kc1
{[%clk 0:00:51.9]} 58... Kb3 {[%clk 0:02:22.6]} 59. Kb1 {[%clk 0:00:50.7]} 59...
Kc3 {[%clk 0:02:21.2]} 60. Kc1 {[%clk 0:00:49.7]} 60... Kd3 {[%clk 0:02:20.7]}
61. Kd1 {[%clk 0:00:48.6]} 61... c3 {[%clk 0:02:20.1]} 62. Kc1 {[%clk
0:00:46.7]} 62... c2 {[%clk 0:02:16.7]} 63. Kb2 {[%clk 0:00:41.2]} 63... Kd2
{[%clk 0:02:15.9]} 0-1